bitfinex/quotes_SOLUSD_20250829
["timestamp","ask_amount","ask_price","bid_price","bid_amount"]
[1756502071339,13.59559401,201.43,201.41,1e-08]
[1756502071644,64.06478907,201.42,201.41,1e-08]
[1756502071861,13.59559401,201.41,201.4,1e-08]
[1756502072168,23.14478907,201.41,201.4,1e-08]
[1756502072468,28.11009664,201.41,201.4,1e-08]
[1756502072647,39.59559401,201.38,201.36,0.2]
[1756502072963,64.06448736,201.37,201.36,0.2]
[1756502073173,64.32448736,201.37,201.36,0.2]
[1756502074456,13.59559401,201.33,201.29,0.03]
[1756502074662,46.77883191,201.32,201.29,0.03]
[1756502075167,48.77041691,201.32,201.29,0.03]
[1756502075675,62.36601092,201.32,201.29,0.03]
[1756502076554,67.33322729,201.32,201.29,0.03]
[1756502077961,26.15322729,201.32,201.29,0.03]
[1756502078146,48.77041691,201.32,201.31,0.92]
[1756502078355,46.77883191,201.32,201.31,0.92]
[1756502078546,51.74604828,201.32,201.31,0.92]
[1756502079256,142.167702,201.33,201.31,0.92]
[1756502079463,131.6,201.33,201.31,0.92]
[1756502079664,137.19883191,201.33,201.32,0.72]
[1756502080161,142.16580156,201.33,201.32,0.72]
[1756502080362,142.16580156,201.33,201.31,0.2]
[1756502080554,46.77883191,201.32,201.31,0.2]
[1756502081149,131.6,201.33,201.31,0.92]
[1756502081348,172.78,201.33,201.31,0.92]
[1756502081552,131.6,201.33,201.32,0.72]
[1756502082176,41.18,201.36,201.32,0.72]
[1756502082356,5.59883191,201.37,201.32,0.72]
[1756502082357,31.59883191,201.37,201.32,0.72]
[1756502082543,72.77883191,201.37,201.32,0.72]
[1756502083450,67.18,201.37,201.32,6.31883191]
[1756502083648,131.6,201.39,201.33,6.31883191]
[1756502083958,54.77559401,201.38,201.34,0.72]
[1756502085850,26.0,201.4,201.37,5.59883191]
[1756502086064,26.0,201.4,201.38,0.72]
[1756502086270,26.0,201.4,201.39,0.72]
[1756502088282,41.16,201.43,201.39,0.72]
[1756502088482,41.16,201.43,201.39,6.31883191]
[1756502088677,41.16,201.43,201.4,6.31883191]
[1756502088880,41.16,201.43,201.41,0.72]
[1756502090288,26.06,201.44,201.42,0.72]
[1756502090481,0.06,201.44,201.43,0.72]
[1756502090685,26.06,201.44,201.43,0.72]
[1756502090989,0.06,201.44,201.43,6.31883191]
[1756502092055,0.06,201.44,201.43,11.2833357]
[1756502096695,0.06,201.47,201.44,13.59559401]
[1756502096994,0.06,201.47,201.46,5.59883191]
[1756502097461,0.06,201.47,201.46,6.31883191]
[1756502097966,0.06,201.47,201.46,11.28259642]
[1756502100289,0.06,201.49,201.47,39.59559401]
[1756502100475,0.06,201.51,201.5,11.19766382]
[1756502100668,0.06,201.54,201.51,13.59559401]
[1756502100873,0.06,201.54,201.52,5.59883191]
[1756502101073,0.06,201.54,201.53,5.59883191]
[1756502101279,0.06,201.54,201.53,6.29883191]
[1756502102475,0.06,201.54,201.53,11.2608723]
[1756502102798,0.06,201.58,201.55,39.59559401]
[1756502103001,0.06,201.58,201.55,45.19442592]
[1756502103187,0.06,201.58,201.57,5.59883191]
[1756502103700,0.06,201.58,201.57,6.29883191]
[1756502104000,0.06,201.58,201.57,47.39883191]
[1756502104182,0.06,201.58,201.57,49.38675591]
[1756502104583,0.06,201.58,201.57,54.34781162]
[1756502105178,0.06,201.58,201.57,5.59883191]
[1756502105493,0.06,201.58,201.57,7.58675491]
[1756502106082,0.06,201.58,201.57,12.54781062]
[1756502107198,0.06,201.58,201.57,13.24781062]
[1756502108394,0.06,201.58,201.57,54.30781062]
[1756502108603,0.06,201.58,201.57,13.24781062]
[1756502108794,0.06,201.58,201.57,46.02105571]
[1756502108980,0.06,201.58,201.57,52.31988762]
[1756502109180,0.06,201.58,201.57,5.59883191]
[1756502109617,0.06,201.58,201.55,4.961548]
[1756502109781,0.06,201.58,201.57,5.59883191]
[1756502110411,0.06,201.58,201.57,6.29883191]
[1756502111080,0.06,201.58,201.57,11.25988762]
[1756502111685,0.06,201.58,201.57,4.96105571]
[1756502111887,0.06,201.58,201.57,11.25988762]
[1756502119706,0.78,201.58,201.55,4.961548]
[1756502119908,0.06,201.58,201.56,5.59883191]
[1756502121192,0.06,201.58,201.53,0.03]
[1756502121390,5.59883191,201.55,201.53,0.03]
[1756502121591,0.72,201.54,201.53,0.03]
[1756502121812,6.31883191,201.54,201.53,0.03]
[1756502122793,32.31883191,201.54,201.53,0.03]
[1756502123410,37.28062609,201.54,201.53,0.03]
[1756502125542,91.8762201,201.54,201.53,0.03]
[1756502125703,19.27738819,201.54,201.53,0.03]
[1756502126041,65.8762201,201.54,201.53,0.03]
[1756502126198,69.54284223,201.54,201.53,0.03]
[1756502126399,63.94401032,201.54,201.53,0.03]
[1756502126601,20.0,201.55,201.53,0.03]
[1756502126806,6.31883191,201.54,201.53,0.03]
[1756502127704,11.28062609,201.54,201.53,0.03]
[1756502128824,6.31883191,201.54,201.53,0.03]
[1756502129203,20.0,201.55,201.53,0.03]
[1756502129404,25.59883191,201.55,201.53,0.03]
[1756502129716,26.31883191,201.55,201.53,0.03]
[1756502130231,20.72,201.55,201.53,0.03]
[1756502130613,20.0,201.55,201.53,0.03]
[1756502130929,0.06,201.58,201.54,6.31883191]
[1756502131101,0.06,201.58,201.55,5.59883191]
[1756502131303,0.06,201.58,201.56,5.59883191]
[1756502131632,0.06,201.58,201.57,6.31883191]
[1756502131928,0.06,201.58,201.57,11.27988762]
[1756502134941,0.06,201.58,201.56,10.56009946]
[1756502135418,0.06,201.58,201.57,5.59883191]
[1756502136229,0.06,201.58,201.57,11.27988762]
[1756502137439,0.06,201.58,201.57,5.68105571]
[1756502137613,0.06,201.58,201.57,11.27988762]
[1756502138415,0.06,201.58,201.54,5.68179418]
[1756502138618,0.06,201.58,201.57,5.59883191]
[1756502139021,0.06,201.58,201.57,6.31883191]
[1756502139333,0.06,201.58,201.55,0.72]
[1756502139517,0.06,201.58,201.56,5.59883191]
[1756502139717,0.06,201.58,201.56,6.31883191]
[1756502141519,0.06,201.58,201.56,9.66228445]
[1756502142346,0.06,201.58,201.55,13.90366552]
[1756502142527,0.06,201.58,201.55,14.62366552]
[1756502142836,0.06,201.58,201.57,8.94228445]
[1756502144925,0.06,201.58,201.56,14.62356326]
[1756502145136,0.06,201.58,201.53,0.03]
[1756502145137,0.72,201.58,201.54,13.90387619]
[1756502145348,9.66228445,201.58,201.53,0.03]
[1756502145525,9.66228445,201.58,201.53,0.75]
[1756502145727,9.66228445,201.58,201.53,5.71198614]
[1756502146124,8.94228445,201.56,201.53,0.03]
[1756502146622,29.60228445,201.55,201.53,0.03]
[1756502147321,20.0,201.55,201.53,0.03]
[1756502149143,0.06,201.58,201.54,9.66228445]
[1756502149336,0.06,201.58,201.55,0.72]
[1756502149642,0.06,201.58,201.56,9.66228445]
[1756502149843,0.06,201.58,201.57,9.66228445]
[1756502150434,0.06,201.58,201.57,8.94228445]
[1756502150639,0.06,201.58,201.53,0.03]
[1756502150834,0.06,201.58,201.57,9.66228445]
[1756502151945,0.06,201.58,201.57,14.62334016]
[1756502152143,0.06,201.58,201.57,4.96105571]
[1756502153048,0.06,201.58,201.57,13.90334016]
[1756502154448,0.06,201.58,201.55,0.72]
[1756502154449,0.06,201.58,201.56,4.96126399]
[1756502154648,0.06,201.58,201.57,8.94228445]
[1756502154837,0.06,201.58,201.57,9.66228445]
[1756502155951,0.06,201.58,201.57,0.72]
[1756502156136,0.06,201.58,201.56,13.90354844]
[1756502156447,0.06,201.58,201.56,14.62354844]
[1756502157239,0.66,201.57,201.53,0.03]
[1756502157749,0.06,201.58,201.56,8.94228445]
[1756502157935,0.06,201.58,201.57,9.66228445]
[1756502159335,0.06,201.58,201.57,14.62334016]
[1756502161351,0.06,201.59,201.57,15.11944573]
[1756502161534,1e-08,201.63,201.61,13.59559401]
[1756502161733,1e-08,201.63,201.62,63.39787846]
[1756502161951,1e-08,201.63,201.62,63.893861]
[1756502162147,1e-08,201.63,201.62,66.540994]
[1756502163452,0.1,201.7,201.69,39.59559401]
[1756502163758,0.1,201.7,201.69,91.61421807]
[1756502163955,0.1,201.7,201.69,92.27421807]
[1756502164139,20.0,201.56,201.52,0.03]
[1756502164331,13.59559401,201.69,201.52,0.03]
[1756502164332,25.57931203,201.54,201.52,0.03]
[1756502164765,26.18931203,201.54,201.52,0.03]
[1756502165346,48.11770871,201.54,201.52,0.03]
[1756502165546,51.80800572,201.54,201.52,0.03]
[1756502166148,48.11770871,201.54,201.52,0.03]
[1756502166554,13.59559401,201.53,201.52,0.03]
[1756502166739,26.23465195,201.53,201.52,0.03]
[1756502166938,26.84465195,201.53,201.52,0.03]
[1756502167141,30.53035246,201.53,201.52,0.03]
[1756502167339,26.84161504,201.53,201.52,0.03]
[1756502167560,39.59559401,201.51,201.49,0.03]
[1756502167762,68.54591453,201.51,201.49,0.03]
[1756502167964,81.79019186,201.51,201.49,0.03]
[1756502168137,50.69032052,201.5,201.49,0.03]
[1756502168567,51.30032052,201.5,201.49,0.03]
[1756502170561,20.0,201.42,201.36,26.69]
[1756502170731,20.0,201.42,201.37,0.66]
[1756502170932,20.0,201.42,201.38,0.66]
[1756502171148,28.95032052,201.42,201.39,0.66]
[1756502171737,28.95032052,201.42,201.36,8.98032052]
[1756502171939,28.95032052,201.42,201.4,0.66]
[1756502172646,28.95032052,201.42,201.38,5.62565146]
[1756502172843,28.95032052,201.42,201.39,0.66]
[1756502173045,20.0,201.42,201.4,0.66]
[1756502173255,8.95032052,201.41,201.36,4.99612162]
[1756502173562,20.0,201.42,201.36,4.99612162]
[1756502173563,28.95032052,201.42,201.37,26.66]
[1756502173862,28.95032052,201.42,201.38,0.66]
[1756502174060,28.95032052,201.42,201.39,0.66]
[1756502175065,28.95032052,201.42,201.4,4.96524329]
[1756502175362,39.94389865,201.6,201.41,0.66]
[1756502175363,20.0,201.46,201.41,0.66]
[1756502175670,28.95032052,201.46,201.41,0.66]
[1756502176041,8.95032052,201.45,201.41,0.66]
[1756502176241,8.95032052,201.44,201.41,0.66]
[1756502176579,8.95032052,201.44,201.4,4.96524329]
[1756502176580,8.95032052,201.42,201.37,30.96598301]
[1756502176870,8.95032052,201.4,201.37,31.62598301]
[1756502177364,8.95032052,201.4,201.38,0.66]
[1756502177543,8.95032052,201.41,201.37,30.96598301]
[1756502177744,8.95032052,201.41,201.37,31.62598301]
[1756502178259,8.95032052,201.41,201.38,0.66]
[1756502178467,8.95032052,201.41,201.36,26.03]
[1756502178468,8.95032052,201.39,201.36,4.99622621]
[1756502178756,8.95032052,201.37,201.36,4.99622621]
[1756502179249,8.95032052,201.38,201.36,0.03]
[1756502179663,20.0,201.41,201.36,0.69]
[1756502179869,8.95032052,201.4,201.36,0.03]
[1756502180049,20.0,201.43,201.37,9.61032052]
[1756502180255,28.95032052,201.43,201.38,0.66]
[1756502180465,28.95032052,201.43,201.39,0.66]
[1756502181173,28.95032052,201.43,201.4,4.96524329]
[1756502181468,28.95032052,201.45,201.41,0.66]
[1756502182482,28.95032052,201.45,201.42,4.96475027]
[1756502184274,8.95032052,201.44,201.42,4.96475027]
[1756502184474,8.95032052,201.43,201.4,4.96524329]
[1756502184658,20.0,201.43,201.41,0.66]
[1756502184865,20.0,201.43,201.4,4.96524329]
[1756502185071,20.0,201.43,201.4,5.62524329]
[1756502185276,28.95032052,201.45,201.41,0.66]
[1756502185477,28.95032052,201.45,201.4,17.37835153]
[1756502185660,28.95032052,201.45,201.42,0.66]
[1756502185984,28.95032052,201.45,201.4,17.37835153]
[1756502186162,8.95032052,201.44,201.4,17.37835153]
[1756502186364,28.95032052,201.45,201.41,0.66]
[1756502188279,28.95032052,201.45,201.42,4.96475027]
[1756502189279,0.61,201.52,201.46,26.0]
[1756502189484,8.95032052,201.48,201.46,26.0]
[1756502189775,0.06,201.47,201.46,26.0]
[1756502190181,0.06,201.47,201.45,34.950321]
[1756502190480,0.06,201.47,201.46,4.96376451]
[1756502190792,9.01032052,201.5,201.46,4.96376451]
[1756502191084,9.01032052,201.5,201.47,0.65]
[1756502191474,8.95032052,201.48,201.46,17.3731758]
[1756502191657,8.95032052,201.49,201.46,17.3731758]
[1756502192187,9.01032052,201.5,201.46,17.3731758]
[1756502192560,0.06,201.5,201.46,18.0231758]
[1756502193460,0.06,201.5,201.47,0.65]
[1756502194493,0.06,201.5,201.48,0.65]
[1756502195467,0.06,201.5,201.46,26.32349632]
[1756502195667,0.06,201.5,201.46,18.0231758]
[1756502196285,0.06,201.5,201.46,17.3731758]
[1756502196473,0.06,201.5,201.47,0.65]
[1756502197089,0.06,201.5,201.48,4.96327178]
[1756502197286,9.56032052,201.49,201.44,4.96425734]
[1756502197593,8.95032052,201.46,201.44,4.96425734]
[1756502197893,8.95032052,201.47,201.44,4.96425734]
[1756502198181,8.95032052,201.46,201.44,17.3749007]
[1756502198391,8.95032052,201.47,201.44,17.3749007]
[1756502199387,8.95032052,201.47,201.44,12.41064336]
[1756502199597,0.06,201.5,201.44,13.06064336]
[1756502199801,8.95032052,201.48,201.44,12.41064336]
[1756502200086,8.95032052,201.48,201.44,13.06064336]
[1756502200286,8.95032052,201.49,201.45,0.65]
[1756502200991,8.95032052,201.49,201.46,0.65]
[1756502201998,8.95032052,201.48,201.47,4.96351814]
[1756502202989,8.95032052,201.49,201.47,4.96351814]
[1756502203176,8.95032052,201.48,201.47,4.96351814]
[1756502204197,8.95032052,201.49,201.45,17.37403822]
[1756502204506,8.95032052,201.49,201.45,18.02403822]
[1756502205787,0.06,201.5,201.45,17.37403822]
[1756502205980,0.06,201.5,201.46,0.65]
[1756502206671,0.06,201.5,201.47,4.96351814]
[1756502206892,0.06,201.52,201.48,9.60032052]
[1756502207392,0.06,201.52,201.49,0.65]
[1756502207596,0.06,201.52,201.5,0.65]
[1756502207800,0.06,201.52,201.49,0.65]
[1756502207989,0.06,201.53,201.5,6.24397958]
[1756502208189,0.06,201.53,201.51,0.65]
[1756502208575,0.06,201.53,201.48,0.65]
[1756502208780,5.65397958,201.53,201.47,22.99629307]
[1756502208988,5.65397958,201.53,201.48,0.65]
[1756502209301,9.01125631,201.53,201.49,0.65]
[1756502210999,9.01125631,201.53,201.5,4.96277915]
[1756502211211,0.06,201.53,201.5,4.96277915]
[1756502212105,9.01125631,201.53,201.5,4.96277915]
[1756502212972,8.95125631,201.51,201.47,12.43879535]
[1756502213180,8.95125631,201.49,201.47,12.43879535]
[1756502214078,0.61,201.51,201.47,12.43879535]
[1756502214280,8.95125631,201.5,201.47,12.43879535]
[1756502214678,8.95125631,201.51,201.47,13.08879535]
[1756502215301,9.01125631,201.53,201.48,0.65]
[1756502215502,8.95125631,201.52,201.49,0.65]
[1756502216006,8.95125631,201.51,201.47,18.05231349]
[1756502216303,8.95125631,201.48,201.47,4.99351814]
[1756502217100,8.95125631,201.49,201.47,4.99351814]
[1756502217882,8.95125631,201.5,201.47,4.99351814]
[1756502218194,8.95125631,201.5,201.47,0.03]
[1756502219481,8.95125631,201.49,201.47,0.03]
[1756502220195,0.61,201.5,201.47,0.03]
[1756502220505,22.54685032,201.48,201.47,0.03]
[1756502220886,23.15685032,201.48,201.47,0.03]
[1756502223787,32.10810663,201.48,201.47,0.03]
[1756502224310,37.07137841,201.48,201.44,0.03]
[1756502224509,13.59559401,201.44,201.42,0.03]
[1756502224811,63.50685032,201.43,201.42,0.03]
[1756502224988,64.08685032,201.43,201.42,0.03]
[1756502225601,13.59559401,201.42,201.41,0.03]
[1756502225806,48.54685032,201.39,201.38,0.03]
[1756502226000,89.50685032,201.39,201.38,0.03]
[1756502226200,49.12685032,201.39,201.38,0.03]
[1756502226392,63.50685032,201.39,201.38,0.03]
[1756502226598,22.54685032,201.39,201.38,0.03]
[1756502226810,63.50685032,201.39,201.38,0.03]
[1756502227010,0.58,201.46,201.38,0.74]
[1756502227213,8.95125631,201.44,201.38,9.69125631]
[1756502227397,8.95125631,201.45,201.39,9.66125631]
[1756502227712,49.91125631,201.46,201.41,17.3774887]
[1756502228011,49.91125631,201.46,201.42,0.71]
[1756502228702,8.95125631,201.45,201.42,0.71]
[1756502228899,40.96,201.46,201.41,17.3774887]
[1756502228900,8.95125631,201.46,201.41,17.3774887]
[1756502229104,49.91125631,201.46,201.43,0.71]
[1756502229309,8.95125631,201.45,201.43,0.71]
[1756502229913,8.95125631,201.46,201.44,4.96425734]
[1756502230121,49.91125631,201.46,201.44,4.96425734]
[1756502230697,8.95125631,201.45,201.4,4.96524329]
[1756502230902,8.95125631,201.43,201.4,5.67524329]
[1756502231108,8.95125631,201.42,201.4,4.96524329]
[1756502231422,8.95125631,201.43,201.4,5.67524329]
[1756502231801,13.59559401,201.45,201.4,4.96524329]
[1756502232001,40.96,201.45,201.41,9.66125631]
[1756502232208,40.96,201.45,201.42,0.71]
[1756502232604,40.96,201.45,201.4,17.37835153]
[1756502232803,49.91125631,201.45,201.41,0.71]
[1756502232998,40.96,201.45,201.42,0.71]
[1756502233720,40.96,201.45,201.43,0.71]
[1756502234311,40.96,201.46,201.44,0.71]
[1756502234515,13.59559401,201.5,201.44,0.71]
[1756502234516,5.59818151,201.47,201.44,0.71]
[1756502234812,46.55818151,201.47,201.44,0.71]
[1756502235016,5.59818151,201.47,201.44,0.71]
[1756502235222,46.55818151,201.47,201.44,0.71]
[1756502235410,5.59818151,201.47,201.44,0.71]
[1756502235611,46.55818151,201.47,201.44,0.71]
[1756502236411,46.55818151,201.47,201.45,4.96401092]
[1756502237015,40.96,201.47,201.45,4.96401092]
[1756502237221,54.55559401,201.47,201.45,4.96401092]
[1756502238128,0.06,201.52,201.46,0.71]
[1756502238425,40.96,201.51,201.46,0.71]
[1756502238631,0.06,201.52,201.48,5.59818151]
[1756502238803,5.65818151,201.52,201.48,0.71]
[1756502239417,5.59818151,201.5,201.45,17.37403822]
[1756502239617,5.59818151,201.5,201.46,0.71]
[1756502240008,5.59818151,201.48,201.47,4.96351814]
[1756502240414,46.55818151,201.49,201.47,4.96351814]
[1756502240808,0.06,201.52,201.48,0.71]
[1756502241020,40.96,201.51,201.48,0.71]
[1756502241208,40.96,201.51,201.47,17.37231349]
[1756502241209,46.55818151,201.51,201.47,17.37231349]
[1756502241407,46.55818151,201.51,201.47,18.08231349]
[1756502241927,40.96,201.51,201.47,18.08231349]
[1756502242733,46.55818151,201.51,201.48,0.71]
[1756502243115,5.59818151,201.51,201.48,0.71]
[1756502243429,46.61818151,201.52,201.48,0.71]
[1756502243832,0.06,201.49,201.48,0.71]
[1756502244024,0.06,201.49,201.47,12.40879535]
[1756502244338,0.06,201.49,201.48,0.71]
[1756502244742,0.06,201.49,201.48,5.67327178]
[1756502245234,0.06,201.49,201.48,11.27145329]
[1756502245927,0.06,201.52,201.51,26.0]
[1756502246131,0.06,201.52,201.51,26.71]
[1756502247030,0.06,201.52,201.51,31.67253287]
[1756502248827,0.06,201.52,201.51,4.96253287]
[1756502249849,5.65818151,201.52,201.51,4.96253287]
[1756502250750,5.65818151,201.52,201.5,4.96277915]
[1756502252347,0.06,201.52,201.5,4.96277915]
[1756502252518,0.06,201.52,201.5,5.68277915]
[1756502253032,0.06,201.52,201.5,4.96277915]
[1756502253231,0.06,201.52,201.51,5.68253287]
[1756502253751,0.06,201.52,201.51,11.28071438]
[1756502254051,0.06,201.52,201.51,5.68253287]
[1756502257225,0.06,201.52,201.51,11.28071438]
[1756502259758,0.06,201.52,201.51,5.68253287]
[1756502259949,0.06,201.52,201.51,11.28071438]
[1756502260753,5.65818151,201.52,201.51,4.96253287]
[1756502260938,6.23818151,201.52,201.51,4.96253287]
[1756502261259,0.06,201.52,201.51,4.96253287]
[1756502261558,0.06,201.52,201.49,4.96302546]
[1756502261737,0.06,201.52,201.49,5.68302546]
[1756502261944,0.06,201.52,201.5,0.72]
[1756502263571,0.06,201.52,201.51,4.96253287]
[1756502263734,1e-08,201.52,201.51,5.68253287]
[1756502265954,1e-08,201.52,201.51,4.96253287]
[1756502266161,6.17818152,201.52,201.51,4.96253287]
[1756502266831,6.17818152,201.52,201.49,0.03]
[1756502267032,5.59818151,201.5,201.49,0.03]
[1756502270357,5.59818151,201.51,201.49,0.03]
[1756502270554,1e-08,201.52,201.5,6.31818151]
[1756502270759,1e-08,201.52,201.51,6.31818151]
[1756502272591,1e-08,201.52,201.51,11.28071438]
[1756502279368,1e-08,201.53,201.51,78.16071438]
[1756502279572,1e-08,201.53,201.52,6.31818151]
[1756502280368,1e-08,201.53,201.51,30.96253287]
[1756502280369,1e-08,201.53,201.51,36.56071438]
[1756502280560,1e-08,201.53,201.52,0.72]
[1756502280867,0.06,201.55,201.54,26.0]
[1756502280868,1e-08,201.55,201.54,26.0]
[1756502281057,1e-08,201.55,201.54,73.17818151]
[1756502281571,0.06,201.69,201.54,86.77377552]
[1756502281768,0.06,201.69,201.63,26.0]
[1756502282069,0.06,201.69,201.65,5.59818151]
[1756502282448,0.06,201.69,201.66,0.7]
[1756502282774,5.59818151,201.67,201.62,5.698182]
[1756502282943,5.59818151,201.64,201.6,30.96031294]
[1756502283148,5.59818151,201.61,201.56,6.398182]
[1756502283354,5.59818151,201.61,201.45,5.00848808]
[1756502283355,0.58,201.63,201.57,5.66105571]
[1756502283554,5.59818151,201.6,201.57,5.66105571]
[1756502283751,5.59818151,201.6,201.57,30.96105571]
[1756502284052,5.59818151,201.6,201.57,31.66105571]
[1756502284669,5.59818151,201.61,201.58,0.7]
[1756502285161,0.58,201.63,201.57,4.961046]
[1756502285366,5.59818151,201.61,201.57,5.661046]
[1756502285875,0.58,201.63,201.57,5.661046]
[1756502285876,5.59818151,201.6,201.57,0.7]
[1756502286172,5.59818151,201.58,201.52,5.66228662]
[1756502286366,5.59818151,201.59,201.53,6.29818151]
[1756502286564,0.58,201.63,201.51,0.03]
[1756502286565,5.59818151,201.61,201.55,5.59818151]
[1756502286752,5.59818151,201.61,201.56,0.7]
[1756502286953,5.59818151,201.58,201.54,26.0]
[1756502287264,5.59818151,201.58,201.54,26.7]
[1756502287869,5.59818151,201.58,201.53,4.9620105]
[1756502288172,5.59818151,201.58,201.53,5.6620105]
[1756502288374,5.59818151,201.56,201.51,0.03]
[1756502288579,0.58,201.61,201.53,5.59818151]
[1756502288763,137.19818151,201.62,201.55,5.59818151]
[1756502288964,5.59818151,201.61,201.56,0.7]
[1756502289164,5.59818151,201.58,201.53,0.7]
[1756502289472,5.59818151,201.58,201.54,0.7]
[1756502289862,5.59818151,201.56,201.52,0.7]
[1756502290069,5.59818151,201.55,201.51,26.03]
[1756502290268,5.59818151,201.57,201.52,0.7]
[1756502290651,5.59818151,201.56,201.51,26.03]
[1756502290852,10.55849897,201.6,201.51,0.03]
[1756502291065,5.59818151,201.53,201.51,0.03]
[1756502291576,5.59818151,201.52,201.51,0.03]
[1756502291971,6.17818151,201.52,201.51,0.03]
[1756502292487,24.73606214,201.52,201.51,0.03]
[1756502292981,24.73606214,201.52,201.49,0.03]
[1756502292982,39.59559401,201.5,201.49,0.03]
[1756502293286,50.79195703,201.5,201.49,0.03]
[1756502293464,40.17559401,201.5,201.49,0.03]
[1756502293668,51.37195703,201.5,201.49,0.03]
[1756502294265,101.21489534,201.5,201.49,0.03]
[1756502294875,39.59559401,201.47,201.46,0.03]
[1756502295065,13.59559401,201.46,201.44,0.03]
[1756502295268,13.59559401,201.44,201.41,0.03]
[1756502295461,5.59818151,201.42,201.41,0.03]
[1756502295677,46.45818151,201.42,201.41,0.03]
[1756502296182,5.59818151,201.42,201.41,0.73]
[1756502296359,5.59818151,201.42,201.41,0.03]
[1756502298477,4.02015916,201.5,201.41,0.73]
[1756502298786,5.59818151,201.46,201.41,6.32818151]
[1756502299082,5.59818151,201.46,201.42,0.7]
[1756502299286,5.59818151,201.46,201.43,0.7]
[1756502299666,5.59818151,201.45,201.41,0.03]
[1756502299861,5.59818151,201.43,201.41,0.73]
[1756502300066,5.59818151,201.43,201.41,0.03]
[1756502300266,5.59818151,201.43,201.41,0.73]
[1756502300779,5.59818151,201.43,201.41,5.69490839]
[1756502301285,40.86,201.47,201.42,0.7]
[1756502301486,5.59818151,201.44,201.41,0.03]
[1756502301686,5.59818151,201.45,201.41,0.73]
[1756502301870,5.59818151,201.45,201.42,0.7]
[1756502302077,46.45818151,201.47,201.43,0.7]
[1756502302276,46.45818151,201.47,201.44,0.7]
[1756502302602,5.59818151,201.52,201.46,5.59818151]
[1756502302793,5.59818151,201.53,201.47,6.29818151]
[1756502303091,5.59818151,201.53,201.48,0.7]
[1756502303264,131.6,201.55,201.49,0.7]
[1756502303467,172.46,201.55,201.5,5.59818151]
[1756502303677,178.05818151,201.55,201.49,5.59818151]
[1756502303864,178.05818151,201.55,201.49,6.29818151]
[1756502304064,40.86,201.55,201.5,6.29818151]
[1756502304287,40.86,201.55,201.51,0.7]
[1756502304503,46.45818151,201.55,201.51,0.7]
[1756502304789,46.45818151,201.55,201.51,5.66245761]
[1756502304979,40.86,201.55,201.51,4.96245761]
[1756502305184,40.86,201.55,201.52,0.7]
[1756502305561,40.86,201.55,201.53,0.7]
[1756502306286,9.00772873,201.57,201.53,0.7]
[1756502307994,8.94772873,201.56,201.52,4.96206869]
[1756502308187,8.94772873,201.53,201.47,0.7]
[1756502308385,8.94772873,201.52,201.47,0.7]
[1756502308588,8.94772873,201.53,201.48,5.66327178]
[1756502308784,8.94772873,201.49,201.43,14.91758]
[1756502308990,8.94772873,201.44,201.41,0.03]
[1756502309191,8.94772873,201.43,201.41,0.03]
[1756502309381,8.94772873,201.44,201.41,0.03]
[1756502310490,8.94772873,201.43,201.41,0.03]
[1756502311883,8.94772873,201.42,201.41,0.03]
[1756502312607,9.52772873,201.42,201.41,0.03]
[1756502312777,40.84,201.45,201.41,0.72]
[1756502312977,49.78772873,201.45,201.41,0.72]
[1756502313192,49.78772873,201.45,201.42,0.69]
[1756502313401,40.84,201.45,201.42,0.69]
[1756502313786,40.84,201.45,201.42,5.65459045]
[1756502314100,49.78772873,201.47,201.43,0.69]